fUSD/lending_fUSD_20260611
["ID","MTS","AMOUNT","RATE_DAILY","PERIOD"]
[424774182,1781151035000,-500.0,0.00013851,2]
[424774185,1781151035000,-500.0,0.00013851,2]
[424774184,1781151035000,-500.0,0.00013851,2]
[424774186,1781151035000,-500.0,0.00013851,2]
[424774141,1781151035000,-500.0,0.00013851,2]
[424774177,1781151035000,-500.0,0.00013851,2]
[424774162,1781151035000,-500.0,0.00013851,2]
[424774183,1781151035000,-557.16874107,0.00013851,2]
[424774166,1781151035000,-500.0,0.00013851,2]
[424774167,1781151035000,-500.0,0.00013851,2]
[424774142,1781151035000,-500.0,0.00013851,2]
[424774151,1781151035000,-500.0,0.00013851,2]
[424774144,1781151035000,-500.0,0.00013851,2]
[424774145,1781151035000,-500.0,0.00013851,2]
[424774147,1781151035000,-500.0,0.00013851,2]
[424774148,1781151035000,-500.0,0.00013851,2]
[424774149,1781151035000,-500.0,0.00013851,2]
[424774150,1781151035000,-500.0,0.00013851,2]
[424774152,1781151035000,-500.0,0.00013851,2]
[424774146,1781151035000,-500.0,0.00013851,2]
[424774159,1781151035000,-500.0,0.00013851,2]
[424774156,1781151035000,-500.0,0.00013851,2]
[424774160,1781151035000,-500.0,0.00013851,2]
[424774154,1781151035000,-500.0,0.00013851,2]
[424774161,1781151035000,-500.0,0.00013851,2]
[424774157,1781151035000,-500.0,0.00013851,2]
[424774158,1781151035000,-500.0,0.00013851,2]
[424774153,1781151035000,-500.0,0.00013851,2]
[424774155,1781151035000,-500.0,0.00013851,2]
[424774163,1781151035000,-500.0,0.00013851,2]
[424774210,1781151036000,-500.0,0.00013851,2]
[424774212,1781151036000,-500.0,0.00013851,2]
[424774206,1781151036000,-500.0,0.00013851,2]
[424774208,1781151036000,-500.0,0.00013851,2]
[424774209,1781151036000,-500.0,0.00013851,2]
[424774211,1781151036000,-500.0,0.00013851,2]
[424774204,1781151036000,-500.0,0.00013851,2]
[424774214,1781151036000,-500.0,0.00013851,2]
[424774216,1781151036000,-500.0,0.00013851,2]
[424774215,1781151036000,-500.0,0.00013851,2]
[424774220,1781151036000,-382.31116913,0.00013851,2]
[424774218,1781151036000,-500.0,0.00013851,2]
[424774217,1781151036000,-500.0,0.00013851,2]
[424774207,1781151036000,-500.0,0.00013851,2]
[424774219,1781151036000,-117.68883087,0.00013851,2]
[424774213,1781151036000,-400.0,0.00013851,2]
[424774205,1781151036000,-500.0,0.00013851,2]
[424774193,1781151036000,-500.0,0.00013851,2]
[424774202,1781151036000,-500.0,0.00013851,2]
[424774221,1781151036000,-189.97637054,0.00013851,2]
[424774190,1781151036000,-500.0,0.00013851,2]
[424774187,1781151036000,-500.0,0.00013851,2]
[424774188,1781151036000,-500.0,0.00013851,2]
[424774192,1781151036000,-500.0,0.00013851,2]
[424774189,1781151036000,-500.0,0.00013851,2]
[424774191,1781151036000,-500.0,0.00013851,2]
[424774195,1781151036000,-500.0,0.00013851,2]
[424774196,1781151036000,-500.0,0.00013851,2]
[424774200,1781151036000,-500.0,0.00013851,2]
[424774201,1781151036000,-500.0,0.00013851,2]
[424774198,1781151036000,-361.82924101,0.00013851,2]
[424774199,1781151036000,-500.0,0.00013851,2]
[424774197,1781151036000,-500.0,0.00013851,2]
[424774194,1781151036000,-500.0,0.00013851,2]
[424774203,1781151036000,-500.0,0.00013851,2]
[424774223,1781151036000,-500.0,0.00013851,2]
[424774242,1781151036000,-1224.70639141,0.00013851,2]
[424774227,1781151036000,-1224.70639141,0.00013851,2]
[424774247,1781151036000,-1224.70639141,0.00013851,2]
[424774250,1781151036000,-1224.70639141,0.00013851,2]
[424774246,1781151036000,-1224.70639141,0.00013851,2]
[424774249,1781151036000,-1224.70639141,0.00013851,2]
[424774244,1781151036000,-1224.70639141,0.00013851,2]
[424774245,1781151036000,-1224.70639141,0.00013851,2]
[424774248,1781151036000,-1224.70639141,0.00013851,2]
[424774252,1781151036000,-1224.70639141,0.00013851,2]
[424774253,1781151036000,-1224.70639141,0.00013851,2]
[424774255,1781151036000,-1224.70639141,0.00013851,2]
[424774222,1781151036000,-500.0,0.00013851,2]
[424774256,1781151036000,-1224.70639141,0.00013851,2]
[424774257,1781151036000,-1224.70639141,0.00013851,2]
[424774258,1781151036000,-446.41099241,0.00013851,2]
[424774259,1781151036000,-778.295399,0.00013851,2]
[424774260,1781151036000,-476.12268777,0.00013851,2]
[424774251,1781151036000,-1224.70639141,0.00013851,2]
[424774243,1781151036000,-1224.70639141,0.00013851,2]
[424774254,1781151036000,-1224.70639141,0.00013851,2]
[424774238,1781151036000,-1224.70639141,0.00013851,2]
[424774240,1781151036000,-1224.70639141,0.00013851,2]
[424774224,1781151036000,-1224.70639141,0.00013851,2]
[424774229,1781151036000,-1224.70639141,0.00013851,2]
[424774226,1781151036000,-1224.70639141,0.00013851,2]
[424774228,1781151036000,-1224.70639141,0.00013851,2]
[424774230,1781151036000,-1224.70639141,0.00013851,2]
[424774231,1781151036000,-1224.70639141,0.00013851,2]
[424774233,1781151036000,-1224.70639141,0.00013851,2]
[424774225,1781151036000,-1224.70639141,0.00013851,2]
[424774241,1781151036000,-1224.70639141,0.00013851,2]
[424774232,1781151036000,-1224.70639141,0.00013851,2]
[424774234,1781151036000,-1224.70639141,0.00013851,2]
[424774237,1781151036000,-1224.70639141,0.00013851,2]
[424774236,1781151036000,-1224.70639141,0.00013851,2]
[424774239,1781151036000,-1224.70639141,0.00013851,2]
[424774235,1781151036000,-1224.70639141,0.00013851,2]
[424774310,1781151038000,-1212.45932749,0.00013851,2]
[424774305,1781151038000,-1224.70639141,0.00013851,2]
[424774306,1781151038000,-500.50998812,0.00013851,2]
[424774314,1781151038000,-1212.45932749,0.00013851,2]
[424774313,1781151038000,-1212.45932749,0.00013851,2]
[424774311,1781151038000,-1212.45932749,0.00013851,2]
[424774317,1781151038000,-1128.2345043,0.00013851,2]
[424774315,1781151038000,-1212.45932749,0.00013851,2]
[424774319,1781151038000,-1071.39458392,0.00013851,2]
[424774309,1781151038000,-1212.45932749,0.00013851,2]
[424774312,1781151038000,-1212.45932749,0.00013851,2]
[424774308,1781151038000,-1212.45932749,0.00013851,2]
[424774302,1781151038000,-1224.70639141,0.00013851,2]
[424774304,1781151038000,-1224.70639141,0.00013851,2]
[424774296,1781151038000,-1224.70639141,0.00013851,2]
[424774291,1781151038000,-1224.70639141,0.00013851,2]
[424774289,1781151038000,-1224.70639141,0.00013851,2]
[424774293,1781151038000,-1224.70639141,0.00013851,2]
[424774301,1781151038000,-1224.70639141,0.00013851,2]
[424774298,1781151038000,-1224.70639141,0.00013851,2]
[424774287,1781151038000,-1224.70639141,0.00013851,2]
[424774300,1781151038000,-1224.70639141,0.00013851,2]
[424774285,1781151038000,-748.58370364,0.00013851,2]
[424774321,1781151038000,-1212.45932749,0.00013851,2]
[424774307,1781151038000,-408.79479283,0.00013851,2]
[424774318,1781151038000,-84.22482319,0.00013851,2]
[424774303,1781151038000,-1224.70639141,0.00013851,2]
[424774320,1781151038000,-141.06474357,0.00013851,2]
[424774316,1781151038000,-1212.45932749,0.00013851,2]
[424774341,1781151038000,-1212.45932749,0.00013851,2]
[424774343,1781151038000,-1212.45932749,0.00013851,2]
[424774344,1781151038000,-1212.45932749,0.00013851,2]
[424774336,1781151038000,-1212.45932749,0.00013851,2]
[424774347,1781151038000,-1212.45932747,0.00013851,2]
[424774345,1781151038000,-433.1259146,0.00013851,2]
[424774340,1781151038000,-1212.45932749,0.00013851,2]
[424774338,1781151038000,-1212.45932749,0.00013851,2]
[424774342,1781151038000,-1212.45932749,0.00013851,2]
[424774339,1781151038000,-1212.45932749,0.00013851,2]
[424774337,1781151038000,-1212.45932749,0.00013851,2]
[424774346,1781151038000,-1212.45932747,0.00013851,2]
[424774332,1781151038000,-1212.45932749,0.00013851,2]
[424774335,1781151038000,-1212.45932749,0.00013851,2]
[424774324,1781151038000,-253.39310443,0.00013851,2]
[424774334,1781151038000,-1212.45932749,0.00013851,2]
[424774323,1781151038000,-678.9113006,0.00013851,2]
[424774325,1781151038000,-1212.45932749,0.00013851,2]
[424774322,1781151038000,-280.15492246,0.00013851,2]
[424774327,1781151038000,-1212.45932749,0.00013851,2]
[424774329,1781151038000,-1212.45932749,0.00013851,2]
[424774330,1781151038000,-1212.45932749,0.00013851,2]
[424774331,1781151038000,-1212.45932749,0.00013851,2]
[424774328,1781151038000,-1212.45932749,0.00013851,2]
[424774326,1781151038000,-1212.45932749,0.00013851,2]
[424774425,1781151039000,-196.84876651,0.00013912,2]
[424774427,1781151039000,-558.12131975,0.00013912,2]
[424774416,1781151039000,-500.0,0.00013912,2]
[424774418,1781151039000,-504.67,0.00013912,2]
[424774412,1781151039000,-500.0,0.00013912,2]
[424774414,1781151039000,-500.0,0.00013912,2]
[424774405,1781151039000,-287.11507075,0.00013893,2]
[424774407,1781151039000,-150.0,0.00013896,2]
[424774423,1781151039000,-504.67,0.00013912,2]
[424774410,1781151039000,-1000.0,0.000139,5]
[424774401,1781151039000,-4417.32233989,0.00013879,2]
[424774444,1781151039000,-500.0,0.00013912,2]
[424774431,1781151039000,-500.0,0.00013912,2]
[424774433,1781151039000,-500.0,0.00013912,2]
[424774435,1781151039000,-500.0,0.00013912,2]
[424774446,1781151039000,-506.55656557,0.00013912,2]
[424774448,1781151039000,-500.0,0.00013912,2]
[424774442,1781151039000,-370.36673015,0.00013912,2]
[424774455,1781151039000,-415.49644405,0.00013912,2]
[424774440,1781151039000,-500.0,0.00013912,2]
[424774453,1781151039000,-500.0,0.00013912,2]
[424774451,1781151039000,-500.0,0.00013912,2]
[424774403,1781151039000,-966.23,0.00013892,2]
[424774429,1781151039000,-500.0,0.00013912,2]
[424774399,1781151039000,-150.0,0.00013862,2]
[424774377,1781151039000,-500.0,0.00013851,2]
[424774395,1781151039000,-835935.1316,0.00013852,2]
[424774356,1781151039000,-1212.45932747,0.00013851,2]
[424774352,1781151039000,-600.47977866,0.00013851,2]
[424774361,1781151039000,-500.0,0.00013851,2]
[424774354,1781151039000,-611.97954881,0.00013851,2]
[424774349,1781151039000,-1212.45932747,0.00013851,2]
[424774348,1781151039000,-1212.45932747,0.00013851,2]
[424774358,1781151039000,-1212.45932744,0.00013851,2]
[424774350,1781151039000,-1212.45932747,0.00013851,2]
[424774363,1781151039000,-500.0,0.00013851,2]
[424774365,1781151039000,-500.0,0.00013851,2]
[424774369,1781151039000,-500.0,0.00013851,2]
[424774397,1781151039000,-150.0,0.00013862,2]
[424774367,1781151039000,-500.0,0.00013851,2]
[424774438,1781151039000,-500.0,0.00013912,2]
[424774371,1781151039000,-500.0,0.00013851,2]
[424774378,1781151039000,-500.0,0.00013851,2]
[424774374,1781151039000,-500.0,0.00013851,2]
[424774382,1781151039000,-605.29261346,0.00013851,2]
[424774384,1781151039000,-500.0,0.00013851,2]
[424774380,1781151039000,-500.0,0.00013851,2]
[424774388,1781151039000,-1722.4372,0.00013852,2]
[424774391,1781151039000,-1500000.0,0.00013852,2]
[424774387,1781151039000,-500.0,0.00013851,2]
[424774393,1781151039000,-6298.8704,0.00013852,2]
[424774373,1781151039000,-625.43970945,0.00013851,2]
[424774457,1781151039000,-500.0,0.00013912,2]
[424774421,1781151039000,-504.67,0.00013912,2]
[424774459,1781151039000,-500.0,0.00013912,2]
[424774523,1781151039000,-150.0,0.00013987,2]
[424774521,1781151039000,-150.0,0.00013956,2]
[424774530,1781151039000,-2735.015,0.00013989,2]
[424774532,1781151039000,-500.0,0.00013999,2]
[424774527,1781151039000,-160.354,0.00013989,2]
[424774547,1781151039000,-1763.77,0.00014007,2]
[424774534,1781151039000,-504.67,0.00013999,2]
[424774543,1781151039000,-50000.0,0.00014,2]
[424774540,1781151039000,-1500.0,0.00014,2]
[424774536,1781151039000,-297.67,0.00014,2]
[424774538,1781151039000,-250.0,0.00014,2]
[424774517,1781151039000,-1000.0,0.00013952,2]
[424774545,1781151039000,-4417.32233989,0.00014006,2]
[424774553,1781151039000,-150.0,0.0001405,2]
[424774558,1781151039000,-200.0,0.00014092,2]
[424774556,1781151039000,-10005.19416804,0.00014079,2]
[424774557,1781151039000,-200.0,0.00014092,2]
[424774560,1781151039000,-200.0,0.00014092,2]
[424774562,1781151039000,-150.0,0.00014112,2]
[424774564,1781151039000,-4417.32233989,0.00014134,2]
[424774566,1781151039000,-150.0,0.00014143,2]
[424774568,1781151039000,-150.0,0.00014169,2]
[424774570,1781151039000,-200.0,0.00014232,2]
[424774468,1781151039000,-500.0,0.00013912,2]
[424774551,1781151039000,-433.0,0.00014046,2]
[424774519,1781151039000,-346.1279258,0.00013952,2]
[424774549,1781151039000,-150.0,0.00014033,2]
[424774506,1781151039000,-200.0,0.00013952,2]
[424774515,1781151039000,-152.0,0.00013952,2]
[424774472,1781151039000,-500.0,0.00013912,2]
[424774478,1781151039000,-8879.6672922,0.00013913,2]
[424774463,1781151039000,-500.0,0.00013912,2]
[424774470,1781151039000,-246.46360657,0.00013912,2]
[424774474,1781151039000,-673192.5939217,0.00013913,2]
[424774476,1781151039000,-89057.2531609,0.00013913,2]
[424774462,1781151039000,-500.0,0.00013912,2]
[424774480,1781151039000,-10005.19416804,0.00013915,2]
[424774482,1781151039000,-500.0,0.00013951,2]
[424774487,1781151039000,-500.0,0.00013951,2]
[424774493,1781151039000,-500.0,0.00013951,2]
[424774466,1781151039000,-500.0,0.00013912,2]
[424774484,1781151039000,-448.30889603,0.00013951,2]
[424774489,1781151039000,-500.0,0.00013951,2]
[424774513,1781151039000,-387.83594067,0.00013952,2]
[424774508,1781151039000,-200.0,0.00013952,2]
[424774511,1781151039000,-200.0,0.00013952,2]
[424774504,1781151039000,-12726.1014119,0.00013952,2]
[424774525,1781151039000,-150.0,0.00013987,2]
[424774502,1781151039000,-966.23,0.00013951,2]
[424774491,1781151039000,-500.0,0.00013951,2]
[424774495,1781151039000,-500.0,0.00013951,2]
[424774499,1781151039000,-966.23,0.00013951,2]
[424774497,1781151039000,-500.0,0.00013951,2]
[424774648,1781151040000,-10005.19416804,0.00014572,2]
[424774657,1781151040000,-150.0,0.00014612,2]
[424774644,1781151040000,-200.0,0.00014519,2]
[424774632,1781151040000,-150.0,0.00014487,2]
[424774655,1781151040000,-150.0,0.00014612,2]
[424774642,1781151040000,-200.0,0.00014519,2]
[424774638,1781151040000,-4417.32233989,0.00014517,2]
[424774640,1781151040000,-150.0,0.00014518,2]
[424774636,1781151040000,-50000.0,0.000145,2]
[424774682,1781151040000,-150.0,0.00014799,2]
[424774651,1781151040000,-150.0,0.00014578,2]
[424774653,1781151040000,-250.31279834,0.00014595,2]
[424774678,1781151040000,-150.0,0.00014737,2]
[424774668,1781151040000,-1300.0,0.000147,5]
[424774669,1781151040000,-150.0,0.00014705,2]
[424774666,1781151040000,-4417.32233989,0.00014645,2]
[424774663,1781151040000,-151.0,0.0001463,2]
[424774690,1781151040000,-150.0,0.0001485,2]
[424774680,1781151040000,-4417.32233989,0.00014772,2]
[424774670,1781151040000,-260.47,0.00014713,2]
[424774672,1781151040000,-150.0,0.00014714,2]
[424774674,1781151040000,-388.61104204,0.00014729,2]
[424774676,1781151040000,-10005.19416804,0.00014736,2]
[424774619,1781151040000,-1240.73551738,0.000144,2]
[424774661,1781151040000,-151.0,0.0001463,2]
[424774634,1781151040000,-150.0,0.00014487,2]
[424774574,1781151040000,-200.0,0.00014232,2]
[424774628,1781151040000,-150.0,0.00014441,2]
[424774572,1781151040000,-200.0,0.00014232,2]
[424774577,1781151040000,-150.0,0.00014237,2]
[424774581,1781151040000,-150.0,0.00014237,2]
[424774579,1781151040000,-150.0,0.00014237,2]
[424774583,1781151040000,-10005.19416804,0.00014243,2]
[424774592,1781151040000,-150.0,0.00014305,2]
[424774587,1781151040000,-163.63,0.00014255,2]
[424774589,1781151040000,-4417.32233989,0.00014262,2]
[424774594,1781151040000,-295.39822294,0.00014326,2]
[424774585,1781151040000,-966.23,0.00014246,2]
[424774598,1781151040000,-500.0,0.00014346,2]
[424774630,1781151040000,-152.0,0.00014452,2]
[424774600,1781151040000,-500.0,0.00014346,2]
[424774603,1781151040000,-500.0,0.00014346,2]
[424774605,1781151040000,-500.0,0.00014346,2]
[424774607,1781151040000,-264.95338711,0.00014346,2]
[424774611,1781151040000,-200.0,0.00014375,2]
[424774609,1781151040000,-150.0,0.00014362,2]
[424774613,1781151040000,-200.0,0.00014375,2]
[424774615,1781151040000,-4417.32233989,0.00014389,2]
[424774617,1781151040000,-10482.63494594,0.0001439,2]
[424774621,1781151040000,-166.8,0.00014405,2]
[424774623,1781151040000,-10005.19416804,0.00014408,2]
[424774625,1781151040000,-150.0,0.00014424,2]
[424774596,1781151040000,-150.0,0.00014331,2]
[424774686,1781151040000,-2168.92644874,0.000148,2]
[424774720,1781151040000,-171.10388604,0.00014925,2]
[424774688,1781151040000,-200.0,0.000148,5]
[424774743,1781151040000,-504.67,0.00014988,2]
[424774763,1781151040000,-500.0,0.00014999,2]
[424774755,1781151040000,-500.0,0.00014999,2]
[424774757,1781151040000,-500.0,0.00014999,2]
[424774761,1781151040000,-500.0,0.00014999,2]
[424774768,1781151040000,-500.0,0.00014999,2]
[424774772,1781151040000,-500.0,0.00014999,2]
[424774766,1781151040000,-500.0,0.00014999,2]
[424774770,1781151040000,-500.0,0.00014999,2]
[424774775,1781151040000,-500.0,0.00014999,2]
[424774783,1781151040000,-500.0,0.00014999,2]
[424774750,1781151040000,-2000.0,0.00014999,2]
[424774777,1781151040000,-500.0,0.00014999,2]
[424774786,1781151040000,-500.0,0.00014999,2]
[424774788,1781151040000,-500.0,0.00014999,2]
[424774792,1781151040000,-500.0,0.00014999,2]
[424774795,1781151040000,-500.0,0.00014999,2]
[424774797,1781151040000,-500.0,0.00014999,2]
[424774804,1781151040000,-500.0,0.00014999,2]
[424774790,1781151040000,-500.0,0.00014999,2]
[424774802,1781151040000,-500.0,0.00014999,2]
[424774799,1781151040000,-500.0,0.00014999,2]
[424774807,1781151040000,-500.0,0.00014999,2]
[424774692,1781151040000,-150.0,0.00014861,2]
[424774781,1781151040000,-500.0,0.00014999,2]
[424774759,1781151040000,-500.0,0.00014999,2]
[424774779,1781151040000,-500.0,0.00014999,2]
[424774747,1781151040000,-151.0,0.00014997,2]
[424774684,1781151040000,-350.0,0.000148,2]
[424774752,1781151040000,-500.0,0.00014999,2]
[424774698,1781151040000,-150.0,0.00014893,2]
[424774694,1781151040000,-200.0,0.00014879,2]
[424774700,1781151040000,-151.0,0.00014897,2]
[424774702,1781151040000,-5800.0,0.000149,2]
[424774713,1781151040000,-295.39822294,0.000149,2]
[424774704,1781151040000,-296.23073167,0.000149,2]
[424774696,1781151040000,-5800.0,0.00014891,2]
[424774715,1781151040000,-760.12,0.000149,2]
[424774708,1781151040000,-200.0,0.000149,5]
[424774711,1781151040000,-4417.32233989,0.000149,2]
[424774706,1781151040000,-10819.58354044,0.000149,2]
[424774738,1781151040000,-500.0,0.00014988,2]
[424774726,1781151040000,-285.31817572,0.00014986,2]
[424774722,1781151040000,-166.8,0.00014976,2]
[424774724,1781151040000,-225.43309031,0.00014986,2]
[424774730,1781151040000,-238.66470824,0.00014986,2]
[424774728,1781151040000,-177.87305337,0.00014986,2]
[424774736,1781151040000,-195.13127817,0.00014986,2]
[424774745,1781151040000,-115968.91106027,0.00014989,2]
[424774734,1781151040000,-216.4332826,0.00014986,2]
[424774732,1781151040000,-245.26144398,0.00014986,2]
[424774717,1781151040000,-10005.19416804,0.000149,2]
[424774741,1781151040000,-966.23,0.00014988,2]
[424774889,1781151041000,-300.0,0.00014999,2]
[424774868,1781151041000,-504.85614846,0.00014999,2]
[424774891,1781151041000,-300.0,0.00014999,2]
[424774900,1781151041000,-672.68,0.00015,2]
[424774887,1781151041000,-300.0,0.00014999,2]
[424774866,1781151041000,-504.67,0.00014999,2]
[424774870,1781151041000,-300.0,0.00014999,2]
[424774883,1781151041000,-300.0,0.00014999,2]
[424774864,1781151041000,-504.67,0.00014999,2]
[424774898,1781151041000,-255.88865067,0.00015,2]
[424774885,1781151041000,-666.0,0.00014999,2]
[424774894,1781151041000,-666.0,0.00014999,2]
[424774931,1781151041000,-1000.0,0.00015,2]
[424774904,1781151041000,-2000.0,0.00015,2]
[424774896,1781151041000,-6138589.6657346,0.00015,2]
[424774906,1781151041000,-184.44,0.00015,2]
[424774911,1781151041000,-1046.1,0.00015,2]
[424774909,1781151041000,-1743.52,0.00015,2]
[424774923,1781151041000,-150.0,0.00015,2]
[424774925,1781151041000,-1000.0,0.00015,2]
[424774927,1781151041000,-1000.0,0.00015,2]
[424774929,1781151041000,-1000.0,0.00015,2]
[424774933,1781151041000,-1000.0,0.00015,2]
[424774932,1781151041000,-1000.0,0.00015,2]
[424774862,1781151041000,-504.67,0.00014999,2]
[424774902,1781151041000,-2000.0,0.00015,2]
[424774881,1781151041000,-300.0,0.00014999,2]
[424774814,1781151041000,-500.0,0.00014999,2]
[424774877,1781151041000,-300.0,0.00014999,2]
[424774809,1781151041000,-500.0,0.00014999,2]
[424774811,1781151041000,-500.0,0.00014999,2]
[424774912,1781151041000,-3000.0,0.00015,2]
[424774818,1781151041000,-500.0,0.00014999,2]
[424774822,1781151041000,-500.0,0.00014999,2]
[424774820,1781151041000,-500.0,0.00014999,2]
[424774816,1781151041000,-500.0,0.00014999,2]
[424774835,1781151041000,-966.23,0.00014999,2]
[424774831,1781151041000,-500.0,0.00014999,2]
[424774826,1781151041000,-500.0,0.00014999,2]
[424774833,1781151041000,-458.26217561,0.00014999,2]
[424774824,1781151041000,-500.0,0.00014999,2]
[424774874,1781151041000,-300.0,0.00014999,2]
[424774828,1781151041000,-500.0,0.00014999,2]
[424774840,1781151041000,-966.23,0.00014999,2]
[424774842,1781151041000,-966.23,0.00014999,2]
[424774849,1781151041000,-966.23,0.00014999,2]
[424774847,1781151041000,-966.23,0.00014999,2]
[424774838,1781151041000,-966.23,0.00014999,2]
[424774844,1781151041000,-966.23,0.00014999,2]
[424774857,1781151041000,-504.67,0.00014999,2]
[424774851,1781151041000,-966.43,0.00014999,2]
[424774855,1781151041000,-504.67,0.00014999,2]
[424774860,1781151041000,-504.67,0.00014999,2]
[424774872,1781151041000,-300.0,0.00014999,2]
[424774879,1781151041000,-666.0,0.00014999,2]
[424774837,1781151041000,-966.23,0.00014999,2]
[424774915,1781151041000,-1285.76,0.00015,2]
[424774853,1781151041000,-504.67,0.00014999,2]
[424774919,1781151041000,-1071.45,0.00015,2]
[424774991,1781151041000,-151.0,0.00015,2]
[424775006,1781151041000,-164.33069,0.00015,2]
[424774997,1781151041000,-164.33069,0.00015,2]
[424774999,1781151041000,-164.33069,0.00015,2]
[424775008,1781151041000,-164.33069,0.00015,2]
[424775001,1781151041000,-164.33069,0.00015,2]
[424775003,1781151041000,-164.33069,0.00015,2]
[424775014,1781151041000,-151.0,0.00015,2]
[424775012,1781151041000,-164.33069,0.00015,2]
[424775018,1781151041000,-151.0,0.00015,2]
[424775016,1781151041000,-151.0,0.00015,2]
[424775010,1781151041000,-164.33069,0.00015,2]
[424774993,1781151041000,-151.0,0.00015,2]
[424775023,1781151041000,-151.0,0.00015,2]
[424775020,1781151041000,-151.0,0.00015,2]
[424775027,1781151041000,-151.0,0.00015,2]
[424775025,1781151041000,-151.0,0.00015,2]
[424775031,1781151041000,-1064.597968,0.00015,2]
[424775045,1781151041000,-1064.597968,0.00015,2]
[424775047,1781151041000,-1064.597968,0.00015,2]
[424775035,1781151041000,-1064.597968,0.00015,2]
[424775043,1781151041000,-1064.597968,0.00015,2]
[424775040,1781151041000,-1064.597968,0.00015,2]
[424775038,1781151041000,-1064.597968,0.00015,2]
[424775033,1781151041000,-1064.597968,0.00015,2]
[424774921,1781151041000,-25000.0,0.00015,2]
[424775029,1781151041000,-151.0,0.00015,2]
[424774995,1781151041000,-151.0,0.00015,2]
[424775049,1781151041000,-151.0,0.00015,2]
[424774989,1781151041000,-151.0,0.00015,2]
[424774987,1781151041000,-159.47308989,0.00015,2]
[424774917,1781151041000,-1785.73,0.00015,2]
[424774934,1781151041000,-1000.0,0.00015,2]
[424774936,1781151041000,-1000.0,0.00015,2]
[424774943,1781151041000,-1000.0,0.00015,2]
[424774941,1781151041000,-1000.0,0.00015,2]
[424774945,1781151041000,-1000.0,0.00015,2]
[424774955,1781151041000,-1000.0,0.00015,2]
[424774949,1781151041000,-1000.0,0.00015,2]
[424774953,1781151041000,-1000.0,0.00015,2]
[424774951,1781151041000,-1000.0,0.00015,2]
[424774947,1781151041000,-1000.0,0.00015,2]
[424774957,1781151041000,-1000.0,0.00015,2]
[424774939,1781151041000,-1000.0,0.00015,2]
[424774961,1781151041000,-1000.0,0.00015,2]
[424774959,1781151041000,-1000.0,0.00015,2]
[424774978,1781151041000,-177.357647,0.00015,2]
[424774970,1781151041000,-1000.0,0.00015,2]
[424774983,1781151041000,-1296655.94354996,0.00015,2]
[424774972,1781151041000,-1008.79341403,0.00015,2]
[424774981,1781151041000,-177.357647,0.00015,2]
[424774976,1781151041000,-177.357647,0.00015,2]
[424774968,1781151041000,-1000.0,0.00015,2]
[424774974,1781151041000,-177.357647,0.00015,2]
[424774966,1781151041000,-1000.0,0.00015,2]
[424774963,1781151041000,-1000.0,0.00015,2]
[424774985,1781151041000,-159.47308989,0.00015,2]
[424775109,1781151042000,-5085.26473748,0.000155,2]
[424775118,1781151042000,-300.0,0.00015645,2]
[424775105,1781151042000,-1763.77,0.00015408,2]
[424775111,1781151042000,-166.8,0.00015547,2]
[424775113,1781151042000,-300.0,0.00015645,2]
[424775124,1781151042000,-300.0,0.00015645,2]
[424775126,1781151042000,-666.0,0.00015645,2]
[424775116,1781151042000,-300.0,0.00015645,2]
[424775107,1781151042000,-400.0,0.000155,2]